fUST/lending_fUST_20250525
["ID","MTS","AMOUNT","RATE_DAILY","PERIOD"]
[362296007,1748169040291,-8513.80038651,0.00016,2]
[362296013,1748169043128,-500.0,0.00014999,2]
[362296014,1748169043138,-245.20747136,0.00014999,2]
[362296015,1748169043148,-939.78808214,0.00016,2]
[362296016,1748169043157,-208.88337136,0.00016,2]
[362296017,1748169043167,-500.0,0.00016026,2]
[362296018,1748169043176,-500.0,0.00016053,2]
[362296019,1748169043186,-448.0,0.00016053,2]
[362296020,1748169043196,-500.0,0.00016053,2]
[362296021,1748169043205,-500.0,0.00016053,2]
[362296022,1748169043215,-151.0,0.00016053,2]
[362296023,1748169043224,-500.0,0.00016053,2]
[362296024,1748169043233,-500.0,0.00016053,2]
[362296025,1748169043243,-151.0,0.00016053,2]
[362296026,1748169043253,-151.0,0.00016053,2]
[362296027,1748169043263,-151.0,0.00016053,2]
[362296028,1748169043273,-151.0,0.00016053,2]
[362296029,1748169043283,-151.0,0.00016053,2]
[362296030,1748169043292,-151.0,0.00016053,2]
[362296031,1748169043302,-151.0,0.00016053,2]
[362296032,1748169043311,-151.0,0.00016053,2]
[362296033,1748169043320,-151.0,0.00016053,2]
[362296035,1748169043329,-151.0,0.00016053,2]
[362296036,1748169043339,-151.0,0.00016053,2]
[362296037,1748169043348,-151.0,0.00016053,2]
[362296038,1748169043358,-500.0,0.00016053,2]
[362296039,1748169043369,-232.85720425,0.00016053,2]
[362296040,1748169043378,-500.0,0.00016053,2]
[362296041,1748169043387,-500.0,0.00016053,2]
[362296042,1748169043397,-500.0,0.00016053,2]
[362296043,1748169043406,-181.79872366,0.00016053,2]
[362296044,1748169043415,-151.0,0.00016053,2]
[362296045,1748169043425,-151.0,0.00016053,2]
[362296046,1748169043434,-151.0,0.00016053,2]
[362296047,1748169043448,-287.63485949,0.00016053,2]
[362296048,1748169043460,-212.36514051,0.00016053,2]
[362296049,1748169043469,-500.0,0.00016053,2]
[362296050,1748169043478,-151.0,0.00016053,2]
[362296051,1748169043489,-500.0,0.00016053,2]
[362296052,1748169043498,-500.0,0.00016053,2]
[362296053,1748169043507,-151.0,0.00016053,2]
[362296054,1748169043516,-500.0,0.00016053,2]
[362296055,1748169043526,-500.0,0.00016062,2]
[362296056,1748169043622,-151.0,0.0001608,2]
[362296057,1748169043634,-500.0,0.0001608,2]
[362296058,1748169043643,-198.0175924,0.0001608,2]
[362296059,1748169043655,-249.9824076,0.0001608,2]
[362296060,1748169043665,-34.79775759,0.0001608,2]
[362296061,1748169043676,-430.0,0.0001608,2]
[362296062,1748169043688,-35.20224241,0.0001608,2]
[362296063,1748169043697,-500.0,0.0001608,2]
[362296064,1748169043707,-151.0,0.0001608,2]
[362296065,1748169043716,-502.30244171,0.0001608,2]
[362296066,1748169043726,-502.46282079,0.0001608,2]
[362296067,1748169043735,-199.07423229,0.0001608,2]
[362296068,1748169043746,-200.3334513,0.0001608,2]
[362296069,1748169043756,-201.02457253,0.0001608,2]
[362296070,1748169043766,-198.87583378,0.0001608,2]
[362296071,1748169043776,-200.77453336,0.0001608,2]
[362296072,1748169043786,-206.10873671,0.0001608,2]
[362296073,1748169043796,-200.03049335,0.0001608,2]
[362296074,1748169043805,-204.85516547,0.0001608,2]
[362296075,1748169043815,-199.01664562,0.0001608,2]
[362296076,1748169043824,-199.22247,0.0001608,2]
[362296077,1748169043833,-199.93374772,0.0001608,2]
[362296079,1748169043843,-200.16142368,0.0001608,2]
[362296081,1748169043852,-500.0,0.0001608,2]
[362296083,1748169043861,-500.0,0.0001608,2]
[362296085,1748169043870,-500.0,0.0001608,2]
[362296086,1748169043880,-500.0,0.0001608,2]
[362296087,1748169043889,-151.0,0.0001608,2]
[362296088,1748169043899,-151.0,0.0001608,2]
[362296089,1748169043909,-163.96688806,0.0001608,2]
[362296090,1748169043918,-634.8065403,0.0001608,2]
[362296091,1748169043928,-500.0,0.0001608,2]
[362296092,1748169043938,-500.0,0.0001608,2]
[362296093,1748169043947,-500.0,0.0001608,2]
[362296094,1748169043957,-500.0,0.0001608,2]
[362296095,1748169043966,-500.0,0.00016108,2]
[362296096,1748169043976,-448.0,0.00016108,2]
[362296097,1748169043986,-156.56453287,0.00016108,2]
[362296098,1748169043996,-540.56203915,0.00016108,2]
[362296099,1748169044006,-151.0,0.00016108,2]
[362296100,1748169044016,-500.0,0.00016108,2]
[362296101,1748169044025,-500.0,0.00016108,2]
[362296102,1748169044034,-500.0,0.00016108,2]
[362296103,1748169044044,-500.0,0.00016108,2]
[362296104,1748169044053,-151.0,0.00016108,2]
[362296105,1748169044063,-151.0,0.00016108,2]
[362296106,1748169044074,-500.0,0.00016108,2]
[362296107,1748169044083,-500.0,0.00016108,2]
[362296108,1748169044092,-448.04849068,0.00016108,2]
[362296109,1748169044103,-500.0,0.00016108,2]
[362296110,1748169044112,-151.0,0.00016108,2]
[362296111,1748169044123,-248.79,0.00016129,2]
[362296112,1748169044133,-500.0,0.00016135,2]
[362296113,1748169044142,-448.0,0.00016135,2]
[362296114,1748169044153,-151.0,0.00016135,2]
[362296115,1748169044163,-500.0,0.00016135,2]
[362296116,1748169044173,-500.0,0.00016135,2]
[362296117,1748169044182,-500.0,0.00016135,2]
[362296118,1748169044195,-500.0,0.00016135,2]
[362296119,1748169044205,-199.56805601,0.00016135,2]
[362296120,1748169044215,-151.0,0.00016135,2]
[362296121,1748169044226,-350.66897876,0.00016135,2]
[362296122,1748169044236,-608.55428632,0.00016135,2]
[362296123,1748169044246,-500.0,0.00016135,2]
[362296124,1748169044255,-500.0,0.00016163,2]
[362296125,1748169044265,-448.0,0.00016163,2]
[362296126,1748169044275,-280.68865117,0.00016163,2]
[362296127,1748169044284,-500.0,0.00016163,2]
[362296128,1748169044293,-500.0,0.00016163,2]
[362296129,1748169044303,-500.0,0.00016163,2]
[362296130,1748169044312,-500.0,0.00016163,2]
[362296131,1748169044322,-193.34465452,0.00016163,2]
[362296132,1748169044331,-174.31816384,0.00016163,2]
[362296133,1748169044340,-338.54033221,0.0001619,2]
[362296134,1748169044350,-448.0,0.0001619,2]
[362296135,1748169044360,-500.0,0.0001619,2]
[362296136,1748169044369,-500.0,0.0001619,2]
[362296137,1748169044378,-500.0,0.0001619,2]
[362296138,1748169044388,-565.41779745,0.0001619,2]
[362296139,1748169044397,-151.0,0.0001619,2]
[362296140,1748169044407,-448.0,0.00016217,2]
[362296141,1748169044416,-500.0,0.00016217,2]
[362296142,1748169044427,-500.0,0.00016217,2]
[362296143,1748169044437,-500.0,0.00016217,2]
[362296144,1748169044449,-151.0,0.00016218,2]
[362296145,1748169044458,-151.0,0.00016218,2]
[362296146,1748169044468,-153.71963,0.00016218,2]
[362296147,1748169044478,-448.0,0.00016245,2]
[362296148,1748169044488,-500.0,0.00016245,2]
[362296149,1748169044498,-500.0,0.00016245,2]
[362296150,1748169044507,-500.0,0.00016245,2]
[362296151,1748169044518,-151.0,0.00016245,2]
[362296152,1748169044527,-448.0,0.00016272,2]
[362296153,1748169044537,-500.0,0.00016272,2]
[362296154,1748169044547,-271.20400084,0.00016272,2]
[362296155,1748169044556,-500.0,0.00016272,2]
[362296156,1748169044566,-448.0,0.000163,2]
[362296157,1748169044577,-500.0,0.000163,2]
[362296158,1748169044587,-474.41531002,0.000163,2]
[362296159,1748169044596,-500.0,0.00016317,2]
[362296160,1748169044606,-448.0,0.00016327,2]
[362296161,1748169044617,-500.0,0.00016327,2]
[362296162,1748169044626,-208.06020944,0.00016338,2]
[362296163,1748169044638,-448.0,0.00016354,2]
[362296164,1748169044648,-176.45806439,0.00016354,2]
[362296165,1748169044659,-448.0,0.00016382,2]
[362296166,1748169044668,-448.0,0.00016409,2]
[362296167,1748169044679,-357.51,0.00016428,3]
[362296168,1748169044688,-178.76,0.00016428,3]
[362296169,1748169044697,-536.29,0.00016428,3]
[362296170,1748169044706,-7929.80357386,0.00016431,2]
[362296171,1748169044716,-151.0,0.00016431,2]
[362296172,1748169044726,-448.0,0.00016437,2]
[362296173,1748169044735,-160.0,0.00016437,2]
[362296174,1748169044745,-458.81127029,0.00016437,2]
[362296175,1748169044754,-151.0,0.00016438,2]
[362296176,1748169044763,-151.0,0.00016438,2]
[362296177,1748169044773,-151.0,0.00016438,2]
[362296178,1748169044859,-151.0,0.00016438,2]
[362296179,1748169044869,-151.0,0.00016438,2]
[362296180,1748169044879,-151.0,0.00016438,2]
[362296181,1748169044888,-151.634082,0.00016438,2]
[362296182,1748169044898,-151.0,0.00016438,2]
[362296183,1748169044907,-151.0,0.00016438,2]
[362296184,1748169044916,-151.0,0.00016438,2]
[362296185,1748169044927,-151.0,0.00016438,2]
[362296186,1748169044936,-226.747218,0.00016438,2]
[362296187,1748169044946,-857.21306931,0.00016438,2]
[362296188,1748169044956,-500.0,0.00016438,2]
[362296189,1748169044966,-500.0,0.00016438,2]
[362296190,1748169044975,-857.21306931,0.00016438,2]
[362296191,1748169044986,-500.0,0.00016438,2]
[362296192,1748169044996,-857.21306931,0.00016438,2]
[362296193,1748169045006,-857.21306931,0.00016438,2]
[362296194,1748169045016,-500.0,0.00016438,2]
[362296195,1748169045026,-857.21306931,0.00016438,2]
[362296196,1748169045037,-500.0,0.00016438,2]
[362296197,1748169045048,-857.21306931,0.00016438,2]
[362296198,1748169045057,-500.0,0.00016438,2]
[362296199,1748169045066,-500.0,0.00016438,2]
[362296200,1748169045076,-857.21306931,0.00016438,2]
[362296201,1748169045086,-500.0,0.00016438,2]
[362296202,1748169045095,-857.21306931,0.00016438,2]
[362296203,1748169045106,-500.0,0.00016438,2]
[362296204,1748169045115,-857.21306931,0.00016438,2]
[362296205,1748169045125,-500.0,0.00016438,2]
[362296206,1748169045137,-857.21306931,0.00016438,2]
[362296207,1748169045146,-500.0,0.00016438,2]
[362296208,1748169045155,-857.21306931,0.00016438,2]
[362296209,1748169045166,-500.0,0.00016438,2]
[362296210,1748169045175,-857.21306931,0.00016438,2]
[362296211,1748169045184,-500.0,0.00016438,2]
[362296212,1748169045194,-857.21306931,0.00016438,2]
[362296213,1748169045203,-500.0,0.00016438,2]
[362296214,1748169045213,-857.21306931,0.00016438,2]
[362296215,1748169045222,-500.0,0.00016438,2]
[362296216,1748169045231,-857.21306931,0.00016438,2]
[362296217,1748169045240,-500.0,0.00016438,2]
[362296218,1748169045249,-857.21306931,0.00016438,2]
[362296219,1748169045259,-500.0,0.00016438,2]
[362296220,1748169045268,-857.21306931,0.00016438,2]
[362296221,1748169045278,-500.0,0.00016438,2]
[362296222,1748169045287,-857.21306931,0.00016438,2]
[362296223,1748169045296,-500.0,0.00016438,2]
[362296224,1748169045306,-857.21306931,0.00016438,2]
[362296225,1748169045316,-500.0,0.00016438,2]
[362296226,1748169045325,-857.21306931,0.00016438,2]
[362296227,1748169045335,-500.0,0.00016438,2]
[362296228,1748169045344,-857.21306931,0.00016438,2]
[362296229,1748169045354,-500.0,0.00016438,2]
[362296230,1748169045363,-857.21306931,0.00016438,2]
[362296231,1748169045373,-500.0,0.00016438,2]
[362296232,1748169045383,-857.21306931,0.00016438,2]
[362296233,1748169045402,-500.0,0.00016438,2]
[362296234,1748169045419,-857.21306931,0.00016438,2]
[362296235,1748169045436,-500.0,0.00016438,2]
[362296236,1748169045457,-857.21306931,0.00016438,2]
[362296237,1748169045475,-500.0,0.00016438,2]
[362296238,1748169045493,-682.20569166,0.00016438,2]
[362296261,1748169046166,-175.00737765,0.00016438,2]
[362296262,1748169046180,-500.0,0.00016438,2]
[362296263,1748169046195,-857.21306931,0.00016438,2]
[362296264,1748169046208,-500.0,0.00016438,2]
[362296265,1748169046222,-857.21306931,0.00016438,2]
[362296266,1748169046236,-500.0,0.00016438,2]
[362296267,1748169046251,-857.21306931,0.00016438,2]
[362296268,1748169046265,-500.0,0.00016438,2]
[362296269,1748169046278,-537.6884469,0.00016438,2]
[362296271,1748169046292,-500.0,0.00016438,2]
[362296273,1748169046306,-857.21306931,0.00016438,2]
[362296276,1748169046321,-500.0,0.00016438,2]
[362296277,1748169046335,-390.8237841,0.00016438,2]
[362296278,1748169046353,-466.38928521,0.00016438,2]
[362296279,1748169046368,-500.0,0.00016438,2]
[362296280,1748169046382,-857.21306931,0.00016438,2]
[362296281,1748169046396,-500.0,0.00016438,2]
[362296282,1748169046410,-857.21306931,0.00016438,2]
[362296283,1748169046427,-236.99432801,0.00016438,2]
[362296292,1748169365612,1047.624139,0.00013699,2]
[362296293,1748169444883,9712.07427239,0.00014,2]
[362296294,1748169444907,287.92572761,0.00014,2]
[362296297,1748169455572,10000.0,0.00014,2]
[362296298,1748169465075,550.52127239,0.00014,2]
[362296299,1748169465097,9449.47872761,0.00014,2]
[362296300,1748169614431,1388.96827239,0.00014,2]
[362296301,1748169614453,3611.03172761,0.00014,2]
[362296302,1748169631319,5000.0,0.00014,2]
[362296303,1748169637789,158.45,0.00013628,2]
[362296304,1748169646571,2068.96527239,0.00014,2]
[362296305,1748169646594,2931.03472761,0.00014,2]
[362296306,1748169662287,5000.0,0.00014,2]
[362296307,1748169677627,2907.41227239,0.00014,2]
[362296308,1748169722498,35455.90322146,0.00021,30]
[362296309,1748169867381,-171.48519062,0.00012918,2]
[362296310,1748169869339,-158.12415215,0.00012918,2]
[362296311,1748169870815,-285.15117557,0.00012918,2]
[362296312,1748169877260,-314.84882443,0.00012918,2]
[362296316,1748169880361,-273.52668646,0.00012918,2]
[362296318,1748169881880,-273.52668646,0.00012918,2]
[362296320,1748169885065,-273.52668646,0.00012918,2]
[362296322,1748169887054,-273.52668646,0.00012918,2]
[362296323,1748169890269,-2920.0,0.00012918,2]
[362296325,1748169891129,-56.28391139,0.00012918,2]
[362296326,1748169891153,-152.69,0.00013048,2]
[362296329,1748169985218,-5000.0,0.00013505,2]
[362296330,1748169985240,-220.7,0.00013614,2]
[362296331,1748169998193,5000.0,0.00014,2]
[362296332,1748170014079,3026.27371429,0.00014,2]
[362296333,1748170014102,1973.72628571,0.00014,2]
[362296334,1748170029960,5000.0,0.00014,2]
[362296347,1748170233244,-208.66,0.00014212,2]
[362296348,1748170233254,-158.31664122,0.00014698,2]
[362296349,1748170233264,-278.22,0.0001483,2]
[362296350,1748170233274,-300.0,0.00014994,2]
[362296351,1748170233284,-300.0,0.00014994,2]
[362296352,1748170233294,-1200.0,0.00014994,2]
[362296353,1748170233304,-6584.018358,0.00014995,2]
[362296354,1748170233314,-1156.3227246,0.00014995,2]
[362296355,1748170233323,-468.396001,0.0001519,2]
[362296356,1748170233333,-250.0,0.000154,2]
[362296357,1748170233342,-347.77,0.00015448,2]
[362296358,1748170233352,-300.0,0.00015999,2]
[362296359,1748170233363,-151.0,0.00016,2]
[362296360,1748170233372,-160.0,0.00016,2]
[362296361,1748170233382,-724.78674055,0.00016,2]
[362296362,1748170233392,-417.33,0.00016066,2]
[362296363,1748170233401,-151.0,0.0001608,2]
[362296364,1748170233411,-151.0,0.0001608,2]
[362296365,1748170233420,-151.0,0.0001608,2]
[362296366,1748170233430,-894.146493,0.00016109,2]
[362296367,1748170233440,-160.0,0.00016162,2]
[362296368,1748170233449,-151.0,0.0001619,2]
[362296369,1748170233459,-151.0,0.0001619,2]
[362296370,1748170233469,-158.29339914,0.000162,2]
[362296371,1748170233478,-185.8775631,0.00016332,2]
[362296372,1748170233489,-158.31664122,0.00016333,2]
[362296373,1748170233498,-916.40900711,0.00016338,2]
[362296374,1748170233508,-653.72746393,0.00016382,2]
[362296375,1748170233517,-420.0,0.00016411,2]
[362296376,1748170233526,-420.0,0.00016411,2]
[362296377,1748170233535,-178.75,0.00016428,3]
[362296378,1748170233545,-536.29,0.00016428,3]
[362296379,1748170233646,-151.0,0.00016431,2]
[362296380,1748170233656,-151.0,0.00016431,2]
[362296381,1748170233666,-1152.26016936,0.00016432,2]
[362296382,1748170233676,-1152.26016936,0.00016432,2]
[362296383,1748170233685,-1152.26016936,0.00016432,2]
[362296384,1748170233695,-1152.26016936,0.00016432,2]
[362296385,1748170233704,-1152.26016936,0.00016432,2]
[362296386,1748170233714,-1152.26016936,0.00016432,2]
[362296387,1748170233724,-1152.26016936,0.00016432,2]
[362296388,1748170233734,-1152.26016936,0.00016432,2]
[362296389,1748170233744,-1152.26016936,0.00016432,2]
[362296390,1748170233753,-1152.26016936,0.00016432,2]
[362296391,1748170233763,-1152.26016936,0.00016432,2]
[362296392,1748170233773,-1152.26016936,0.00016432,2]
[362296393,1748170233782,-1152.26016936,0.00016432,2]
[362296394,1748170233791,-1152.26016936,0.00016432,2]
[362296395,1748170233801,-1152.26016936,0.00016432,2]
[362296396,1748170233810,-1152.26016936,0.00016432,2]
[362296397,1748170233821,-1152.26016936,0.00016432,2]
[362296398,1748170233830,-1152.26016936,0.00016432,2]
[362296399,1748170233839,-1152.26016936,0.00016432,2]
[362296400,1748170233849,-1152.26016936,0.00016432,2]
[362296401,1748170233859,-1152.26016936,0.00016432,2]
[362296402,1748170233871,-1152.26016936,0.00016432,2]
[362296403,1748170233880,-1152.26016936,0.00016432,2]
[362296404,1748170233890,-1152.26016936,0.00016432,2]
[362296405,1748170233900,-1152.26016936,0.00016432,2]
[362296406,1748170233911,-1152.26016936,0.00016432,2]
[362296407,1748170233921,-1152.26016936,0.00016432,2]
[362296408,1748170233931,-1152.26016936,0.00016432,2]
[362296409,1748170233943,-1152.26016936,0.00016432,2]
[362296410,1748170233953,-1152.26016936,0.00016432,2]
[362296411,1748170233962,-1152.26016936,0.00016432,2]
[362296412,1748170233972,-1152.26016936,0.00016432,2]
[362296413,1748170233982,-1152.26016936,0.00016432,2]
[362296414,1748170233992,-1152.26016936,0.00016432,2]
[362296415,1748170234001,-1152.26016936,0.00016432,2]
[362296416,1748170234010,-1152.26016936,0.00016432,2]
[362296417,1748170234020,-1152.26016936,0.00016432,2]
[362296418,1748170234030,-1152.26016936,0.00016432,2]
[362296419,1748170234039,-1152.26016936,0.00016432,2]
[362296420,1748170234049,-1152.26016936,0.00016432,2]
[362296421,1748170234059,-1152.26016936,0.00016432,2]
[362296422,1748170234068,-1152.26016936,0.00016432,2]
[362296423,1748170234077,-1170.55001334,0.00016432,2]
[362296424,1748170234086,-1170.55001334,0.00016432,2]
[362296425,1748170234096,-1170.55001334,0.00016432,2]
[362296426,1748170234105,-1170.55001334,0.00016432,2]
[362296427,1748170234115,-1170.55001334,0.00016432,2]
[362296428,1748170234125,-1170.55001334,0.00016432,2]
[362296429,1748170234134,-1170.55001334,0.00016432,2]
[362296430,1748170234144,-234.26443732,0.00016436,2]
[362296431,1748170234154,-500.0,0.00016436,2]
[362296432,1748170234164,-423.0,0.00016436,2]
[362296433,1748170234173,-500.0,0.00016436,2]
[362296434,1748170234183,-500.0,0.00016437,2]
[362296435,1748170234192,-500.0,0.00016437,2]
[362296436,1748170234202,-151.0,0.00016437,2]
[362296437,1748170234212,-500.0,0.00016437,2]
[362296438,1748170234222,-500.0,0.00016437,2]
[362296439,1748170234232,-500.0,0.00016437,2]
[362296440,1748170234241,-500.0,0.00016437,2]
[362296441,1748170234250,-151.0,0.00016437,2]
[362296442,1748170234260,-500.0,0.00016437,2]
[362296443,1748170234269,-500.0,0.00016437,2]
[362296444,1748170234279,-151.0,0.00016437,2]
[362296445,1748170234289,-500.0,0.00016437,2]
[362296446,1748170234298,-500.0,0.00016437,2]
[362296447,1748170234308,-500.0,0.00016437,2]
[362296448,1748170234318,-500.0,0.00016437,2]
[362296449,1748170234327,-500.0,0.00016437,2]
[362296450,1748170234337,-151.0,0.00016437,2]
[362296451,1748170234346,-151.0,0.00016437,2]
[362296452,1748170234356,-151.0,0.00016437,2]
[362296453,1748170234365,-151.738719,0.00016437,2]
[362296454,1748170234375,-151.0,0.00016438,2]
[362296455,1748170234385,-151.0,0.00016438,2]
[362296456,1748170234395,-151.0,0.00016438,2]
[362296457,1748170234405,-151.0,0.00016438,2]
[362296458,1748170234414,-151.0,0.00016438,2]
[362296459,1748170234424,-151.0,0.00016438,2]
[362296460,1748170234434,-151.0,0.00016438,2]
[362296461,1748170234443,-151.0,0.00016438,2]
[362296462,1748170234453,-151.0,0.00016438,2]
[362296463,1748170234463,-151.0,0.00016438,2]
[362296464,1748170234473,-151.0,0.00016438,2]
[362296465,1748170234482,-151.0,0.00016438,2]
[362296466,1748170234491,-818.667307,0.00016438,2]
[362296467,1748170234501,-500.0,0.00016438,2]
[362296468,1748170234510,-500.0,0.00016438,2]
[362296469,1748170234519,-500.0,0.00016438,2]
[362296470,1748170234529,-500.0,0.00016438,2]
[362296471,1748170234538,-500.0,0.00016438,2]
[362296472,1748170234548,-500.0,0.00016438,2]
[362296473,1748170234558,-500.0,0.00016438,2]
[362296474,1748170234568,-500.0,0.00016438,2]
[362296475,1748170234578,-266.0,0.00016438,2]
[362296476,1748170234588,-151.0,0.00016438,2]
[362296477,1748170234597,-151.0,0.00016438,2]
[362296478,1748170234606,-151.0,0.00016438,2]
[362296479,1748170234616,-151.0,0.00016438,2]
[362296480,1748170234627,-151.0,0.00016438,2]
[362296481,1748170234637,-305.642438,0.00016438,2]
[362296482,1748170234647,-151.0,0.00016438,2]
[362296483,1748170234656,-305.642438,0.00016438,2]
[362296484,1748170234667,-151.866833,0.00016438,2]
[362296485,1748170234676,-500.0,0.00016463,2]
[362296486,1748170234685,-423.0,0.00016463,2]
[362296487,1748170234695,-500.0,0.00016463,2]
[362296488,1748170234704,-151.380611,0.00016464,2]
[362296489,1748170234714,-305.642438,0.00016464,2]
[362296490,1748170234723,-305.642438,0.00016464,2]
[362296491,1748170234732,-500.0,0.00016464,2]
[362296492,1748170234741,-500.0,0.00016464,2]
[362296493,1748170234751,-151.0,0.00016464,2]
[362296494,1748170234760,-500.0,0.00016464,2]
[362296495,1748170234770,-500.0,0.00016464,2]
[362296496,1748170234780,-500.0,0.00016464,2]
[362296497,1748170234789,-500.0,0.00016464,2]
[362296498,1748170234876,-151.0,0.00016464,2]
[362296499,1748170234886,-517.96830432,0.00016464,2]
[362296500,1748170234896,-500.0,0.00016464,2]
[362296501,1748170234906,-204.37114643,0.00016464,2]
[362296502,1748170234916,-500.0,0.00016464,2]
[362296503,1748170234925,-500.0,0.00016464,2]
[362296504,1748170234936,-500.0,0.00016464,2]
[362296505,1748170234945,-500.0,0.00016464,2]
[362296506,1748170234954,-500.0,0.00016464,2]
[362296507,1748170234964,-500.0,0.00016491,2]
[362296508,1748170234973,-423.0,0.00016491,2]
[362296509,1748170234984,-500.0,0.00016491,2]
[362296510,1748170234994,-500.0,0.00016492,2]
[362296511,1748170235003,-500.0,0.00016492,2]
[362296512,1748170235014,-151.0,0.00016492,2]
[362296513,1748170235025,-500.0,0.00016492,2]
[362296514,1748170235036,-500.0,0.00016492,2]
[362296515,1748170235046,-500.0,0.00016492,2]
[362296516,1748170235057,-500.0,0.00016492,2]
[362296517,1748170235068,-151.0,0.00016492,2]
[362296518,1748170235081,-500.0,0.00016492,2]
[362296519,1748170235090,-500.0,0.00016492,2]
[362296520,1748170235099,-500.0,0.00016492,2]
[362296521,1748170235108,-500.0,0.00016492,2]
[362296522,1748170235117,-500.0,0.00016492,2]
[362296523,1748170235127,-500.0,0.00016492,2]
[362296524,1748170235136,-818.667307,0.00016493,2]
[362296525,1748170235145,-1680.0,0.00016494,2]
[362296526,1748170235155,-500.0,0.00016499,2]
[362296527,1748170235166,-500.0,0.00016499,2]
[362296528,1748170235176,-446.08590501,0.00016499,2]
[362296529,1748170235186,-500.0,0.00016499,2]
[362296530,1748170235196,-500.0,0.00016499,2]
[362296531,1748170235205,-500.0,0.00016499,2]
[362296532,1748170235215,-567.19580035,0.00016499,2]
[362296533,1748170235224,-1000.66115759,0.000165,2]
[362296534,1748170235234,-54251.8018126,0.000165,2]
[362296535,1748170235245,-151.0,0.000165,2]
[362296536,1748170235255,-151.0,0.000165,2]
[362296537,1748170235264,-163.047552,0.000165,2]
[362296538,1748170235274,-151.0,0.000165,2]
[362296539,1748170235284,-151.0,0.000165,2]
[362296540,1748170235294,-151.0,0.000165,2]
[362296541,1748170235303,-250.0,0.000165,2]
[362296542,1748170235313,-250.0,0.000165,2]
[362296543,1748170235322,-250.0,0.000165,2]
[362296544,1748170235332,-818.667307,0.000165,2]
[362296545,1748170235341,-151.0,0.000165,2]
[362296546,1748170235350,-305.642438,0.000165,2]
[362296547,1748170235360,-305.642438,0.000165,2]
[362296548,1748170235370,-500.0,0.00016518,2]
[362296549,1748170235379,-423.0,0.00016518,2]
[362296550,1748170235388,-500.0,0.00016518,2]
[362296551,1748170235398,-500.0,0.00016519,2]
[362296552,1748170235407,-500.0,0.00016519,2]
[362296553,1748170235417,-290.47067365,0.00016519,2]
[362296554,1748170235427,-500.0,0.00016519,2]
[362296555,1748170235436,-500.0,0.00016519,2]
[362296556,1748170235445,-500.0,0.00016519,2]
[362296557,1748170235455,-500.0,0.00016519,2]
[362296558,1748170235464,-151.0,0.00016519,2]
[362296559,1748170235473,-360.9298611,0.00016519,2]
[362296560,1748170235483,-599.72085076,0.00016519,2]
[362296561,1748170235493,-500.0,0.00016519,2]
[362296562,1748170235502,-179.18451321,0.00016519,2]
[362296563,1748170235511,-230.45015584,0.00016519,2]
[362296564,1748170235521,-247.63055055,0.00016519,2]
[362296565,1748170235531,-500.0,0.00016546,2]
[362296566,1748170235542,-423.0,0.00016546,2]
[362296567,1748170235553,-500.0,0.00016546,2]
[362296568,1748170235564,-500.0,0.00016547,2]
[362296569,1748170235573,-500.0,0.00016547,2]
[362296570,1748170235582,-500.0,0.00016547,2]
[362296571,1748170235591,-500.0,0.00016547,2]
[362296572,1748170235601,-375.39818065,0.00016547,2]
[362296573,1748170235611,-500.0,0.00016547,2]